fUSD/lending_fUSD_20240117
["ID","MTS","AMOUNT","RATE_DAILY","PERIOD"]
[311912567,1705496331262,151.0,0.00023729,7]
[311912568,1705496331558,151.0,0.00024277,7]
[311912569,1705496331884,151.0,0.00024825,7]
[311912570,1705496332166,192.780041,0.00025647,7]
[311912571,1705496359135,151.0,0.00022634,7]
[311912572,1705496359406,151.0,0.000229,7]
[311912573,1705496359695,234.731771,0.0002298,7]
[311912574,1705496494652,1000.0,0.00025,7]
[311912575,1705496503733,500.0,0.00022633,7]
[311912576,1705496503972,500.0,0.00022907,7]
[311912577,1705496504242,500.0,0.00023181,7]
[311912578,1705496504813,500.0,0.00023455,7]
[311912579,1705496505599,500.0,0.00023729,7]
[311912580,1705496505871,500.0,0.00024003,7]
[311912581,1705496506121,500.0,0.00024277,7]
[311912582,1705496506398,500.0,0.00024551,7]
[311912583,1705496507112,500.0,0.00024825,7]
[311912584,1705496507185,341.57883455,0.00025099,7]
[311912585,1705496522627,1000.0,0.00025,7]
[311912589,1705496723699,191.597046,0.00022634,7]
[311912590,1705496950092,-309.16,0.00019059,2]
[311912591,1705496950113,-262.6579,0.000199,2]
[311912592,1705496954114,284.9,0.00022634,7]
[311912626,1705497031432,-150.0,0.00019999,2]
[311912628,1705497031442,-1170.04532024,0.0002,2]
[311912629,1705497031454,-286.91879071,0.0002,2]
[311912630,1705497031600,-423.42499971,0.0002,2]
[311912631,1705497031657,-2345.3935,0.0002,2]
[311912632,1705497031670,-1272.92017302,0.0002,2]
[311912633,1705497031683,-656.29483399,0.0002,2]
[311912634,1705497031769,-4333.04397771,0.0002,2]
[311912636,1705497037404,-259.56812837,0.0002,2]
[311912637,1705497037461,-6303.85998769,0.0002,2]
[311912638,1705497037477,-914.5177045,0.0002,2]
[311912639,1705497037487,-161.03994689,0.00020042,2]
[311912640,1705497037497,-559.0494248,0.00020142,2]
[311912641,1705497037509,-253.09527594,0.00020369,2]
[311912642,1705497037519,-250.0,0.000205,2]
[311912643,1705497037529,-200.0,0.00020958,2]
[311912644,1705497037539,-2480.48,0.00020991,2]
[311912645,1705497037549,-161.03994689,0.00020995,2]
[311912646,1705497037559,-800.0,0.00020997,2]
[311912647,1705497037568,-250.0,0.00021111,2]
[311912648,1705497037578,-499.99,0.00021111,2]
[311912649,1705497037589,-1979.05,0.00021111,2]
[311912650,1705497037599,-1603.39,0.0002114,2]
[311912651,1705497037609,-2000.0,0.00021153,2]
[311912652,1705497037618,-235.46,0.00021153,2]
[311912653,1705497037627,-414.91,0.00021158,2]
[311912654,1705497037637,-778.17450987,0.00021166,2]
[311912655,1705497037649,-567.54986914,0.00021166,2]
[311912656,1705497037661,-1864.8,0.00021166,2]
[311912657,1705497037673,-1207.6,0.00021166,2]
[311912658,1705497037686,-1076.7,0.00021166,2]
[311912659,1705497037697,-305.51235568,0.00021166,2]
[311912660,1705497037708,-3332.97664968,0.00021166,2]
[311912661,1705497037719,-392.0,0.00021166,2]
[311912662,1705497037731,-4024.09921372,0.00021166,2]
[311912663,1705497037739,-7830.49252757,0.00021176,2]
[311912664,1705497037751,-16069.50747243,0.00021176,2]
[311912665,1705497037761,-200.0,0.00021191,2]
[311912666,1705497037771,-262.86,0.00021311,2]
[311912667,1705497037780,-309.16,0.00021323,2]
[311912668,1705497037789,-262.86,0.0002137,2]
[311912669,1705497037798,-160.97,0.0002139,2]
[311912670,1705497037808,-262.86,0.00021428,2]
[311912671,1705497037818,-262.86,0.00021487,2]
[311912672,1705497037828,-262.86,0.00021545,2]
[311912673,1705497037838,-262.86,0.00021603,2]
[311912674,1705497037848,-262.86,0.00021662,2]
[311912675,1705497037857,-155.0,0.00021701,2]
[311912677,1705497037868,-158.79,0.0002171,2]
[311912679,1705497037877,-262.86,0.0002172,2]
[311912681,1705497037887,-1284.68182926,0.00021779,3]
[311912683,1705497037896,-262.86,0.00021779,2]
[311912685,1705497037906,-262.86,0.00021837,2]
[311912686,1705497037915,-158.79,0.00021854,2]
[311912688,1705497037924,-262.86,0.00021896,2]
[311912689,1705497037935,-250.0,0.00021918,2]
[311912690,1705497037945,-10000.0,0.00021918,2]
[311912691,1705497037954,-161.03994689,0.00021947,2]
[311912692,1705497037964,-262.86,0.00021954,2]
[311912693,1705497037973,-256.83,0.00021999,2]
[311912694,1705497037983,-158.79,0.00021999,2]
[311912695,1705497037992,-262.86,0.00022013,2]
[311912696,1705497038002,-262.86,0.00022071,2]
[311912698,1705497038011,-262.86,0.00022129,2]
[311912700,1705497038021,-235.46,0.00022131,2]
[311912702,1705497038030,-256.83,0.00022136,2]
[311912703,1705497038039,-158.79,0.00022144,2]
[311912705,1705497038048,-262.86,0.00022188,2]
[311912706,1705497038057,-262.86,0.00022246,2]
[311912708,1705497038066,-256.83,0.00022273,2]
[311912710,1705497038077,-158.79,0.00022289,2]
[311912712,1705497038086,-262.86,0.00022305,2]
[311912714,1705497038095,-262.86,0.00022363,2]
[311912716,1705497038105,-3087.64229765,0.00022406,2]
[311912718,1705497038114,-384.74415949,0.0002241,2]
[311912720,1705497038124,-262.86,0.00022422,2]
[311912722,1705497038134,-158.79,0.00022433,2]
[311912724,1705497038143,-4978.986,0.00022533,2]
[311912726,1705497038153,-2500.0,0.00022533,2]
[311912728,1705497038165,-3724.2135,0.00022534,2]
[311912730,1705497038174,-540.55967139,0.00022535,2]
[311912732,1705497038184,-158.79,0.00022578,2]
[311912734,1705497038194,-3975.6,0.00022631,2]
[311912736,1705497038203,-427.72502112,0.00022632,2]
[311912738,1705497038213,-374.71049551,0.00022632,2]
[311912740,1705497038222,-3298.63931296,0.00022632,2]
[311912743,1705497038240,-399.71253246,0.00022632,2]
[311912746,1705497038252,-523.55681014,0.00022632,2]
[311912748,1705497038264,-837.8831543,0.00022632,2]
[311912750,1705497038276,-535.13796799,0.00022632,2]
[311912752,1705497038287,-408.87876488,0.00022632,2]
[311912754,1705497038299,-4988.33134931,0.00022632,2]
[311912757,1705497038309,-4362.05865069,0.00022632,2]
[311912759,1705497038326,-909.21794422,0.00022632,2]
[311912762,1705497038336,-373.14385349,0.00022632,2]
[311912763,1705497038346,-10550.48774312,0.00022632,2]
[311912766,1705497038357,-402.501,0.00022632,2]
[311912768,1705497038366,-500.0,0.00022632,2]
[311912769,1705497038377,-500.0,0.00022632,2]
[311912772,1705497038386,-500.0,0.00022632,2]
[311912773,1705497038396,-500.0,0.00022632,2]
[311912776,1705497038406,-465.89,0.00022632,2]
[311912777,1705497038415,-500.0,0.00022632,2]
[311912780,1705497038425,-500.0,0.00022632,2]
[311912782,1705497038435,-270.85,0.00022632,2]
[311912784,1705497038444,-650.47,0.00022632,2]
[311912786,1705497038454,-500.0,0.00022632,2]
[311912788,1705497038464,-500.0,0.00022632,2]
[311912790,1705497038473,-500.0,0.00022632,2]
[311912792,1705497038482,-500.0,0.00022632,2]
[311912794,1705497038491,-1353.57,0.00022632,2]
[311912796,1705497038502,-560.12,0.00022632,2]
[311912798,1705497038514,-786.28,0.00022632,2]
[311912800,1705497038525,-1065.68,0.00022632,2]
[311912802,1705497038534,-500.0,0.00022632,2]
[311912804,1705497038544,-500.0,0.00022632,2]
[311912806,1705497038554,-500.0,0.00022632,2]
[311912808,1705497038564,-500.0,0.00022632,2]
[311912810,1705497038572,-577.29,0.00022632,2]
[311912812,1705497038583,-477.04184857,0.00022632,2]
[311912814,1705497038611,-377.41886455,0.00022632,2]
[311912816,1705497038628,-284.52921169,0.00022632,5]
[311912819,1705497038649,-2347.64078831,0.00022632,5]
[311912821,1705497038660,-288.39,0.00022632,2]
[311912823,1705497038670,-500.0,0.00022632,2]
[311912825,1705497038682,-500.0,0.00022632,2]
[311912827,1705497038691,-564.72,0.00022632,2]
[311912828,1705497038700,-298.13,0.00022632,2]
[311912830,1705497038711,-500.0,0.00022632,2]
[311912831,1705497038721,-500.0,0.00022632,2]
[311912833,1705497038732,-412.57,0.00022632,2]
[311912835,1705497038743,-500.0,0.00022632,2]
[311912836,1705497038753,-500.0,0.00022632,2]
[311912838,1705497038764,-500.0,0.00022632,2]
[311912840,1705497038774,-500.0,0.00022632,2]
[311912842,1705497038785,-500.0,0.00022632,2]
[311912843,1705497038796,-500.0,0.00022632,2]
[311912845,1705497038806,-500.0,0.00022632,2]
[311912847,1705497038815,-500.0,0.00022632,2]
[311912848,1705497038826,-354.04,0.00022632,2]
[311912850,1705497038835,-500.0,0.00022632,2]
[311912852,1705497038846,-500.0,0.00022632,2]
[311912854,1705497038855,-500.0,0.00022632,2]
[311912855,1705497038865,-1089.1239,0.00022633,2]
[311912857,1705497038875,-36173.8779315,0.00022633,2]
[311912859,1705497038885,-3295.67153385,0.00022633,2]
[311912861,1705497038895,-500.0,0.00022633,2]
[311912862,1705497038904,-184.84,0.00022633,2]
[311912864,1705497038914,-500.0,0.00022633,2]
[311912866,1705497038923,-521.00023891,0.00022633,2]
[311912867,1705497038933,-228.04,0.00022633,2]
[311912869,1705497038943,-500.0,0.00022633,2]
[311912871,1705497038952,-500.0,0.00022633,2]
[311912873,1705497038963,-500.0,0.00022633,2]
[311912874,1705497038974,-500.0,0.00022633,2]
[311912876,1705497038983,-500.0,0.00022633,2]
[311912878,1705497038993,-500.0,0.00022633,2]
[311912880,1705497039004,-508.4057453,0.00022633,2]
[311912881,1705497039013,-500.0,0.00022633,2]
[311912883,1705497039023,-500.0,0.00022633,2]
[311912884,1705497039032,-500.0,0.00022633,2]
[311912886,1705497039043,-500.0,0.00022633,2]
[311912888,1705497039053,-500.0,0.00022633,2]
[311912890,1705497039062,-500.0,0.00022633,2]
[311912892,1705497039071,-500.0,0.00022633,2]
[311912893,1705497039081,-500.0,0.00022633,2]
[311912895,1705497039090,-644.61,0.00022633,2]
[311912897,1705497039100,-500.0,0.00022633,2]
[311912899,1705497039110,-500.0,0.00022633,2]
[311912900,1705497039119,-500.0,0.00022633,2]
[311912902,1705497039129,-500.0,0.00022633,2]
[311912904,1705497039138,-500.0,0.00022633,2]
[311912906,1705497039148,-240.36,0.00022633,2]
[311912908,1705497039157,-500.0,0.00022633,2]
[311912909,1705497039166,-500.0,0.00022633,2]
[311912911,1705497039176,-500.0,0.00022633,2]
[311912913,1705497039186,-500.0,0.00022633,2]
[311912915,1705497039195,-500.0,0.00022633,2]
[311912917,1705497039204,-500.0,0.00022633,2]
[311912918,1705497039215,-319.19240106,0.00022633,2]
[311912920,1705497039224,-500.0,0.00022633,2]
[311912923,1705497039235,-388.02,0.00022633,2]
[311912926,1705497039245,-500.0,0.00022633,2]
[311912929,1705497039255,-295.25,0.00022633,2]
[311912932,1705497039264,-500.0,0.00022633,2]
[311912934,1705497039274,-632.65,0.00022633,2]
[311912937,1705497039284,-152.16,0.00022633,2]
[311912940,1705497039294,-245.11,0.00022633,2]
[311912943,1705497039303,-212.39,0.00022633,2]
[311912946,1705497039312,-500.0,0.00022633,2]
[311912948,1705497039322,-185.19,0.00022633,2]
[311912951,1705497039331,-500.0,0.00022633,2]
[311912954,1705497039341,-396.16256298,0.00022633,2]
[311913204,1705497042641,-103.83743702,0.00022633,2]
[311913205,1705497042650,-1009.36561679,0.00022633,5]
[311913206,1705497042659,-500.0,0.00022633,2]
[311913207,1705497042668,-483.53,0.00022633,2]
[311913208,1705497042677,-144.35500349,0.00022633,2]
[311913209,1705497042772,-355.64499651,0.00022633,2]
[311913210,1705497042782,-218.21931749,0.00022633,2]
[311913211,1705497043043,-99.64068251,0.00022633,2]
[311913212,1705497043053,-240.72,0.00022633,2]
[311913213,1705497043063,-500.0,0.00022633,2]
[311913214,1705497043072,-500.0,0.00022633,2]
[311913215,1705497043081,-500.0,0.00022633,2]
[311913216,1705497043090,-202.95,0.00022633,2]
[311913217,1705497043100,-390.62,0.00022633,2]
[311913218,1705497043109,-150.0,0.00022633,2]
[311913219,1705497043119,-667.37,0.00022633,2]
[311913220,1705497043128,-778.55,0.00022633,2]
[311913221,1705497043137,-500.0,0.00022633,2]
[311913222,1705497043149,-500.0,0.00022633,2]
[311913223,1705497043159,-500.0,0.00022633,2]
[311913224,1705497043167,-500.0,0.00022633,2]
[311913225,1705497043177,-500.0,0.00022633,2]
[311913226,1705497043186,-500.0,0.00022633,2]
[311913227,1705497043195,-500.0,0.00022633,2]
[311913228,1705497043204,-485.5,0.00022633,2]
[311913229,1705497043213,-287.69,0.00022633,2]
[311913230,1705497043222,-500.0,0.00022633,2]
[311913231,1705497043231,-157.97,0.00022633,2]
[311913232,1705497043241,-500.0,0.00022633,2]
[311913233,1705497043250,-500.0,0.00022633,2]
[311913234,1705497043259,-500.0,0.00022633,2]
[311913236,1705497043269,-500.0,0.00022633,2]
[311913237,1705497043278,-500.0,0.00022633,2]
[311913238,1705497043288,-205.41,0.00022633,2]
[311913239,1705497043298,-500.0,0.00022633,2]
[311913240,1705497043308,-500.0,0.00022633,2]
[311913241,1705497043319,-500.0,0.00022633,2]
[311913242,1705497043330,-500.0,0.00022633,2]
[311913243,1705497043341,-589.61,0.00022633,2]
[311913244,1705497043352,-500.0,0.00022633,2]
[311913245,1705497043362,-500.0,0.00022633,2]
[311913246,1705497043372,-500.0,0.00022633,2]
[311913247,1705497043382,-331.6,0.00022633,2]
[311913248,1705497043586,-500.0,0.00022633,2]
[311913249,1705497043598,-500.0,0.00022633,2]
[311913250,1705497043609,-500.0,0.00022633,2]
[311913251,1705497043619,-500.0,0.00022633,2]
[311913252,1705497043629,-500.0,0.00022633,2]
[311913253,1705497043640,-500.0,0.00022633,2]
[311913254,1705497043651,-500.0,0.00022633,2]
[311913255,1705497043660,-323.45045551,0.00022633,2]
[311913256,1705497043671,-500.0,0.00022633,2]
[311913257,1705497043680,-500.0,0.00022633,2]
[311913258,1705497043690,-500.0,0.00022633,2]
[311913259,1705497043699,-500.0,0.00022633,2]
[311913260,1705497043711,-781.76,0.00022633,2]
[311913261,1705497043721,-500.0,0.00022633,2]
[311913262,1705497043731,-418.98,0.00022633,2]
[311913263,1705497043741,-500.0,0.00022633,2]
[311913264,1705497043752,-1398.54,0.00022633,5]
[311913265,1705497043763,-500.0,0.00022633,2]
[311913266,1705497043774,-500.0,0.00022633,2]
[311913267,1705497043784,-500.0,0.00022633,2]
[311913268,1705497043794,-500.0,0.00022633,2]
[311913269,1705497043803,-238.27,0.00022633,2]
[311913270,1705497043813,-500.0,0.00022633,2]
[311913271,1705497043824,-406.04,0.00022633,2]
[311913272,1705497043834,-152.27423752,0.00022633,2]
[311913273,1705497043844,-500.0,0.00022633,2]
[311913274,1705497043860,-256.20768783,0.00022633,2]
[311913275,1705497043874,-500.0,0.00022633,2]
[311913276,1705497043885,-298.29,0.00022633,2]
[311913277,1705497043896,-517.48,0.00022633,2]
[311913278,1705497043905,-513.25,0.00022633,2]
[311913279,1705497043915,-500.0,0.00022633,2]
[311913280,1705497043925,-500.0,0.00022633,2]
[311913281,1705497043935,-634.53,0.00022633,2]
[311913282,1705497043946,-500.0,0.00022633,2]
[311913283,1705497043955,-500.0,0.00022633,2]
[311913284,1705497043964,-650.47,0.00022633,2]
[311913285,1705497043974,-500.0,0.00022633,2]
[311913286,1705497043983,-500.0,0.00022633,2]
[311913287,1705497043992,-500.0,0.00022633,2]
[311913288,1705497044001,-500.0,0.00022633,2]
[311913289,1705497044010,-500.0,0.00022633,2]
[311913290,1705497044019,-500.0,0.00022633,2]
[311913291,1705497044029,-500.0,0.00022633,2]
[311913292,1705497044038,-500.0,0.00022633,2]
[311913293,1705497044047,-551.23,0.00022633,2]
[311913294,1705497044056,-615.47,0.00022633,2]
[311913295,1705497044066,-500.0,0.00022633,2]
[311913296,1705497044075,-500.0,0.00022633,2]
[311913297,1705497044084,-249.28,0.00022633,2]
[311913298,1705497044093,-500.0,0.00022633,2]
[311913299,1705497044102,-500.0,0.00022633,2]
[311913300,1705497044111,-500.0,0.00022633,2]
[311913301,1705497044120,-500.0,0.00022633,2]
[311913302,1705497044130,-500.0,0.00022633,2]
[311913303,1705497044139,-500.0,0.00022633,2]
[311913304,1705497044148,-500.0,0.00022633,2]
[311913305,1705497044158,-500.0,0.00022633,2]
[311913306,1705497044167,-158.82,0.00022633,2]
[311913307,1705497044176,-500.0,0.00022633,2]
[311913308,1705497044185,-500.0,0.00022633,2]
[311913309,1705497044195,-500.0,0.00022633,2]
[311913310,1705497044204,-210.29,0.00022633,2]
[311913311,1705497044213,-500.0,0.00022633,2]
[311913312,1705497044222,-562.68,0.00022633,2]
[311913313,1705497044231,-500.0,0.00022633,2]
[311913314,1705497044240,-500.0,0.00022633,2]
[311913315,1705497044249,-500.0,0.00022633,2]
[311913316,1705497044258,-649.12,0.00022633,2]
[311913317,1705497044268,-311.25,0.00022633,2]
[311913318,1705497044277,-27392.59263103,0.00022634,2]
[311913319,1705497044325,-3.01457382,0.00022634,2]
[311913320,1705497044337,-500.0,0.00022634,2]
[311913321,1705497044349,-3471.36718712,0.00022634,2]
[311913330,1705497045746,-2550.30000001,0.00022634,2]
[311913366,1705497244224,202.0,0.00026485,7]
[311913367,1705497342778,-155.0,0.00021151,2]
[311913368,1705497342798,-164.01553332,0.00021152,2]
[311913369,1705497342819,-280.98446668,0.00021153,2]
[311913372,1705497605097,202.0,0.0002601,8]
[311913373,1705497615125,-155.0,0.00019838,2]
[311913374,1705497615148,-445.0,0.00019839,2]
[311913376,1705497855358,284.9,0.00022907,7]
[311913377,1705497964310,202.0,0.00025666,9]
[311913378,1705498016083,-155.0,0.00019585,2]
[311913379,1705498016104,-122.52513125,0.00019585,2]
[311913380,1705498147069,-948.08713067,0.00019585,2]
[311913381,1705498147091,-289.91,0.00019586,2]
[311913382,1705498147112,-164.01553332,0.00019838,2]
[311913403,1705498231600,-155.0,0.00020499,2]
[311913404,1705498231610,-250.0,0.000205,2]
[311913405,1705498231620,-34.62247958,0.00020761,2]
[311913406,1705498231659,-167.37752042,0.00020761,2]
[311913407,1705498231669,-303.81,0.00021153,2]
[311913408,1705498231679,-225.41,0.00021495,2]
[311913409,1705498231692,-16.49724664,0.00021512,2]
[311913410,1705498231782,-679.69275336,0.00021512,2]
[311913411,1705498231791,-159.14,0.00021677,2]
[311913412,1705498231801,-165.11,0.000217,2]
[311913413,1705498231811,-180.75,0.00021701,2]
[311913414,1705498231821,-499.99,0.00021701,2]
[311913415,1705498231831,-155.0,0.00021701,2]
[311913416,1705498231841,-289.91,0.0002185,2]
[311913417,1705498231851,-159.14,0.00021902,2]
[311913418,1705498231864,-159.14,0.00022128,2]
[311913419,1705498231874,-161.03994689,0.00022305,2]
[311913420,1705498231884,-150.0,0.00022309,2]
[311913421,1705498231894,-159.14,0.00022354,2]
[311913422,1705498231909,-419.37593271,0.00022406,2]
[311913423,1705498231918,-248.81807754,0.00022406,2]
[311913424,1705498231928,-200.0,0.00022453,2]
[311913425,1705498231942,-213.734372,0.00022453,2]
[311913426,1705498231952,-225.41,0.00022474,2]
[311913427,1705498231962,-762.63989464,0.00022532,2]
[311913428,1705498231973,-234.0,0.00022533,2]
[311913429,1705498231982,-2115.3493,0.00022534,2]
[311913430,1705498231992,-318.9706,0.00022534,2]
[311913431,1705498232002,-1933.4344,0.00022534,2]
[311913432,1705498232011,-507.08869456,0.00022534,2]
[311913433,1705498232021,-159.14,0.0002258,2]
[311913434,1705498232030,-1561.81033761,0.00022631,2]
[311913435,1705498232124,-360.90064478,0.00022631,2]
[311913436,1705498232134,-1501.22196827,0.00022631,2]
[311913437,1705498232144,-266.47788631,0.00022631,2]
[311913438,1705498232153,-2211.88486936,0.00022632,3]
[311913439,1705498232164,-9320.06870109,0.00022632,2]
[311913440,1705498232173,-255.48387001,0.00022632,2]
[311913441,1705498232183,-985.47024403,0.00022632,2]
[311913442,1705498232194,-177.46737757,0.00022632,2]
[311913443,1705498232204,-500.0,0.00022632,2]
[311913444,1705498232214,-500.0,0.00022632,2]
[311913445,1705498232223,-746.11,0.00022632,2]
[311913446,1705498232233,-639.56,0.00022632,2]
[311913447,1705498232243,-3295.67153385,0.00022633,2]
[311913448,1705498232253,-500.0,0.00022633,2]
[311913449,1705498232262,-500.0,0.00022633,2]
[311913450,1705498232271,-500.0,0.00022633,2]
[311913451,1705498232282,-500.0,0.00022633,2]
[311913452,1705498232292,-500.0,0.00022633,2]
[311913453,1705498232302,-500.0,0.00022633,2]
[311913454,1705498232312,-517.8018221,0.00022633,2]
[311913455,1705498232321,-500.0,0.00022633,2]
[311913456,1705498232330,-500.0,0.00022633,2]
[311913457,1705498232340,-500.0,0.00022633,2]
[311913458,1705498232349,-500.0,0.00022633,2]
[311913459,1705498232360,-399.07,0.00022633,2]
[311913460,1705498232370,-500.0,0.00022633,2]
[311913461,1705498232379,-500.0,0.00022633,2]
[311913462,1705498232389,-500.0,0.00022633,2]
[311913463,1705498232398,-500.0,0.00022633,2]
[311913464,1705498232408,-500.0,0.00022633,2]
[311913465,1705498232417,-200.01,0.00022633,2]
[311913466,1705498232427,-500.0,0.00022633,2]
[311913467,1705498232437,-500.0,0.00022633,2]
[311913468,1705498232447,-500.0,0.00022633,2]
[311913469,1705498232457,-500.0,0.00022633,2]
[311913470,1705498232468,-150.0,0.00022633,2]
[311913471,1705498232478,-500.0,0.00022633,2]
[311913472,1705498232487,-500.0,0.00022633,2]
[311913473,1705498232496,-500.0,0.00022633,2]
[311913474,1705498232506,-500.0,0.00022633,2]
[311913475,1705498232516,-500.0,0.00022633,2]
[311913476,1705498232525,-500.0,0.00022633,2]
[311913477,1705498232536,-500.0,0.00022633,2]
[311913478,1705498232551,-500.0,0.00022633,2]
[311913479,1705498232567,-500.0,0.00022633,2]
[311913480,1705498232578,-500.0,0.00022633,2]
[311913481,1705498232588,-500.0,0.00022633,2]
[311913482,1705498232599,-500.0,0.00022633,2]
[311913483,1705498232609,-273.93,0.00022633,2]
[311913484,1705498232620,-500.0,0.00022633,2]
[311913485,1705498232631,-500.0,0.00022633,2]
[311913486,1705498232641,-500.0,0.00022633,2]
[311913487,1705498232650,-500.0,0.00022633,2]
[311913488,1705498232660,-500.0,0.00022633,2]
[311913489,1705498232670,-500.0,0.00022633,2]
[311913490,1705498232679,-749.18,0.00022633,2]
[311913491,1705498232690,-500.0,0.00022633,2]
[311913492,1705498232699,-606.58,0.00022633,2]
[311913493,1705498232709,-2624.15,0.00022633,5]
[311913494,1705498232719,-500.0,0.00022633,2]
[311913495,1705498232729,-792.61,0.00022633,2]
[311913496,1705498232738,-500.0,0.00022633,2]
[311913497,1705498232747,-500.0,0.00022633,2]
[311913498,1705498232757,-500.0,0.00022633,2]
[311913499,1705498232767,-500.0,0.00022633,2]
[311913500,1705498232778,-293.41,0.00022633,2]
[311913501,1705498232788,-500.0,0.00022633,2]
[311913502,1705498232799,-500.0,0.00022633,2]
[311913503,1705498232809,-500.0,0.00022633,2]
[311913504,1705498232818,-513.41,0.00022633,2]
[311913505,1705498232827,-500.0,0.00022633,2]
[311913506,1705498232837,-500.0,0.00022633,2]
[311913507,1705498232846,-596.27,0.00022633,2]
[311913508,1705498232856,-500.0,0.00022633,2]
[311913509,1705498232867,-500.0,0.00022633,2]
[311913510,1705498232876,-263.35,0.00022633,2]
[311913511,1705498232885,-500.0,0.00022633,2]
[311913512,1705498232894,-500.0,0.00022633,2]
[311913513,1705498232905,-500.0,0.00022633,2]
[311913514,1705498232914,-500.0,0.00022633,2]
[311913515,1705498232923,-500.0,0.00022633,2]
[311913516,1705498232932,-500.0,0.00022633,2]
[311913517,1705498232945,-753.52,0.00022633,2]
[311913518,1705498232955,-1297.18,0.00022633,2]
[311913519,1705498232964,-500.0,0.00022633,2]
[311913520,1705498232973,-500.0,0.00022633,2]
[311913521,1705498232983,-500.0,0.00022633,2]
[311913522,1705498232993,-500.0,0.00022633,2]
[311913523,1705498233003,-500.0,0.00022633,2]
[311913524,1705498233013,-229.69,0.00022633,2]
[311913525,1705498233022,-274.43,0.00022633,2]
[311913526,1705498233031,-5070.88,0.00022633,2]
[311913527,1705498233040,-500.0,0.00022633,2]
[311913528,1705498233049,-500.0,0.00022633,2]
[311913529,1705498233059,-484.10949165,0.00022633,2]
[311913530,1705498233068,-500.0,0.00022633,2]
[311913531,1705498233078,-500.0,0.00022633,2]
[311913532,1705498233087,-553.23,0.00022633,2]
[311913533,1705498233097,-500.0,0.00022633,2]
[311913534,1705498233106,-500.0,0.00022633,2]
[311913535,1705498233116,-500.0,0.00022633,2]
[311913536,1705498233125,-541.19,0.00022633,2]
[311913537,1705498233134,-4664.32,0.00022633,5]
[311913538,1705498233144,-500.0,0.00022633,2]
[311913539,1705498233153,-500.0,0.00022633,2]
[311913540,1705498233164,-500.0,0.00022633,2]
[311913541,1705498233173,-500.0,0.00022633,2]
[311913542,1705498233184,-500.0,0.00022633,2]
[311913543,1705498233197,-500.0,0.00022633,2]
[311913544,1705498233207,-500.0,0.00022633,2]
[311913545,1705498233217,-500.0,0.00022633,2]
[311913546,1705498233227,-500.0,0.00022633,2]
[311913547,1705498233237,-500.0,0.00022633,2]
[311913548,1705498233247,-500.0,0.00022633,2]
[311913549,1705498233256,-500.0,0.00022633,2]
[311913550,1705498233266,-500.0,0.00022633,2]
[311913551,1705498233275,-500.0,0.00022633,2]
[311913552,1705498233285,-500.0,0.00022633,2]
[311913553,1705498233295,-500.0,0.00022633,2]
[311913554,1705498233305,-500.0,0.00022633,2]